fUST/lending_fUST_20250124
["ID","MTS","AMOUNT","RATE_DAILY","PERIOD"]
[350202189,1737687051280,-508.07513409,0.00019863,3]
[350202190,1737687051290,-500.0,0.00019863,3]
[350202191,1737687051300,-2877.86,0.00019863,3]
[350202192,1737687051309,-536.13,0.00019863,3]
[350202193,1737687051319,-502.22,0.00019863,3]
[350202194,1737687051329,-506.17450024,0.00019863,3]
[350202195,1737687051338,-500.0,0.00019863,3]
[350202196,1737687051348,-500.0,0.00019863,3]
[350202197,1737687051358,-1032.07,0.00019863,3]
[350202198,1737687051368,-551.71,0.00019863,3]
[350202199,1737687051378,-507.82434902,0.00019863,3]
[350202200,1737687051387,-500.0,0.00019863,3]
[350202201,1737687051397,-500.0,0.00019863,3]
[350202202,1737687051406,-500.0,0.00019863,3]
[350202203,1737687051417,-500.0,0.00019863,3]
[350202204,1737687051426,-606.17,0.00019863,3]
[350202205,1737687051436,-500.0,0.00019863,3]
[350202206,1737687051445,-500.0,0.00019863,3]
[350202207,1737687051455,-505.70535045,0.00019863,3]
[350202208,1737687051465,-500.0,0.00019863,3]
[350202209,1737687051474,-500.0,0.00019863,3]
[350202210,1737687051484,-500.0,0.00019863,3]
[350202211,1737687051493,-500.0,0.00019863,3]
[350202212,1737687051502,-500.0,0.00019863,3]
[350202213,1737687051512,-1072.27,0.00019863,3]
[350202214,1737687051521,-151.0,0.00019863,2]
[350202215,1737687051531,-151.0,0.00019863,2]
[350202216,1737687051540,-500.0,0.00019876,3]
[350202217,1737687051549,-500.0,0.00019876,3]
[350202218,1737687051558,-500.0,0.00019876,3]
[350202219,1737687051567,-249.916237,0.000199,2]
[350202220,1737687051576,-249.916237,0.000199,2]
[350202221,1737687051585,-151.0,0.000199,2]
[350202222,1737687051594,-151.0,0.000199,2]
[350202223,1737687051603,-880.95451252,0.000199,2]
[350202224,1737687051612,-248.92,0.0002,3]
[350202225,1737687051621,-285.93,0.0002,3]
[350202226,1737687051630,-319.86,0.0002,3]
[350202227,1737687051639,-500.0,0.0002,3]
[350202228,1737687051648,-514.36,0.0002,3]
[350202229,1737687051657,-500.0,0.0002,3]
[350202230,1737687051666,-500.0,0.0002,3]
[350202231,1737687051675,-151.0,0.0002,2]
[350202232,1737687051684,-500.0,0.0002,3]
[350202233,1737687051692,-151.0,0.0002,2]
[350202234,1737687051701,-500.0,0.0002,3]
[350202235,1737687051710,-293.971364,0.0002,2]
[350202236,1737687051720,-500.0,0.0002,3]
[350202237,1737687051729,-500.0,0.0002,3]
[350202238,1737687051738,-500.0,0.0002,3]
[350202239,1737687051747,-500.0,0.0002,3]
[350202240,1737687051756,-500.0,0.0002,3]
[350202241,1737687051766,-500.0,0.0002,3]
[350202242,1737687051775,-500.0,0.0002,3]
[350202243,1737687051784,-2755.07,0.0002,3]
[350202244,1737687051793,-151.0,0.0002,2]
[350202245,1737687051802,-500.0,0.0002,3]
[350202246,1737687051811,-2566.35,0.0002,3]
[350202247,1737687051821,-500.0,0.0002,3]
[350202248,1737687051830,-500.0,0.0002,3]
[350202249,1737687051839,-500.0,0.0002,3]
[350202250,1737687051848,-500.0,0.0002,3]
[350202251,1737687051857,-500.0,0.0002,3]
[350202252,1737687051867,-500.0,0.0002,3]
[350202253,1737687051876,-1164.35,0.0002,3]
[350202254,1737687051885,-2794.98,0.0002,3]
[350202255,1737687051895,-841.46,0.0002,3]
[350202256,1737687051903,-500.0,0.0002,3]
[350202257,1737687051913,-500.0,0.0002,3]
[350202258,1737687051923,-330.02246307,0.0002,3]
[350202259,1737687051934,-500.0,0.0002,3]
[350202260,1737687051944,-500.0,0.0002,3]
[350202261,1737687051953,-888.16,0.0002,3]
[350202262,1737687051962,-500.0,0.0002,3]
[350202263,1737687051971,-500.0,0.0002,3]
[350202264,1737687051981,-151.0,0.0002,2]
[350202265,1737687051990,-500.0,0.0002,3]
[350202266,1737687051999,-500.0,0.0002,3]
[350202267,1737687052009,-500.0,0.0002,3]
[350202268,1737687052019,-500.0,0.0002,3]
[350202269,1737687052029,-500.0,0.0002,3]
[350202270,1737687052039,-500.0,0.0002,3]
[350202271,1737687052048,-500.0,0.0002,3]
[350202272,1737687052057,-500.0,0.0002,3]
[350202273,1737687052067,-500.0,0.0002,3]
[350202274,1737687052076,-504.62948869,0.0002,3]
[350202275,1737687052085,-500.0,0.0002,3]
[350202276,1737687052094,-500.0,0.0002,3]
[350202277,1737687052105,-678.28,0.0002,3]
[350202278,1737687052114,-500.0,0.0002,3]
[350202279,1737687052123,-12181.58,0.0002,3]
[350202280,1737687052133,-500.0,0.0002,3]
[350202281,1737687052142,-581.2,0.0002,3]
[350202282,1737687052151,-500.0,0.0002,3]
[350202283,1737687052160,-500.0,0.0002,3]
[350202284,1737687052170,-1061.46,0.0002,3]
[350202285,1737687052179,-500.0,0.0002,3]
[350202286,1737687052188,-500.0,0.0002,3]
[350202287,1737687052197,-500.0,0.0002,3]
[350202288,1737687052206,-500.0,0.0002,3]
[350202289,1737687052215,-2173.92,0.0002,3]
[350202290,1737687052225,-500.0,0.0002,3]
[350202291,1737687052234,-1202.1,0.0002,3]
[350202292,1737687052243,-1819.3,0.0002,3]
[350202293,1737687052253,-500.0,0.0002,3]
[350202294,1737687052262,-500.0,0.0002,3]
[350202295,1737687052271,-500.0,0.0002,3]
[350202296,1737687052281,-522.76,0.0002,3]
[350202297,1737687052290,-500.0,0.0002,3]
[350202298,1737687052300,-500.0,0.0002,3]
[350202299,1737687052310,-2877.86,0.0002,3]
[350202300,1737687052319,-536.13,0.0002,3]
[350202301,1737687052329,-502.22,0.0002,3]
[350202302,1737687052339,-500.0,0.0002,3]
[350202303,1737687052348,-1032.07,0.0002,3]
[350202304,1737687052357,-551.71,0.0002,3]
[350202305,1737687052367,-500.0,0.0002,3]
[350202306,1737687052376,-500.0,0.0002,3]
[350202307,1737687052385,-500.0,0.0002,3]
[350202308,1737687052395,-442.84,0.0002,3]
[350202309,1737687052404,-606.17,0.0002,3]
[350202310,1737687052414,-515.59823235,0.0002,3]
[350202311,1737687052424,-500.0,0.0002,3]
[350202312,1737687052434,-500.0,0.0002,3]
[350202313,1737687052443,-500.0,0.0002,3]
[350202314,1737687052453,-500.0,0.0002,3]
[350202315,1737687052463,-500.0,0.0002,3]
[350202316,1737687052472,-500.0,0.0002,3]
[350202317,1737687052482,-1072.27,0.0002,3]
[350202318,1737687052492,-151.0,0.0002,2]
[350202319,1737687052502,-500.0,0.00020013,3]
[350202320,1737687052511,-500.0,0.00020013,3]
[350202321,1737687052520,-500.0,0.00020013,3]
[350202322,1737687052531,-228.57814638,0.00020021,2]
[350202323,1737687052541,-1000.0,0.00020021,2]
[350202324,1737687052551,-880.95451252,0.00020038,2]
[350202325,1737687052561,-500.0,0.0002005,2]
[350202326,1737687052570,-151.0,0.00020136,2]
[350202327,1737687052579,-467.95,0.00020136,3]
[350202328,1737687052589,-151.0,0.00020136,2]
[350202329,1737687052598,-511.36,0.00020136,3]
[350202330,1737687052608,-500.0,0.00020136,3]
[350202331,1737687052617,-500.0,0.00020136,3]
[350202332,1737687052627,-500.0,0.00020136,3]
[350202333,1737687052636,-453.0,0.00020136,3]
[350202334,1737687052645,-535.56,0.00020136,3]
[350202335,1737687052654,-500.0,0.00020136,3]
[350202336,1737687052663,-506.8554691,0.00020136,3]
[350202337,1737687052674,-229.28703028,0.00020136,3]
[350202338,1737687052683,-500.0,0.00020136,3]
[350202339,1737687052693,-505.00983911,0.00020136,3]
[350202340,1737687052701,-2755.07,0.00020136,3]
[350202341,1737687052711,-500.0,0.00020136,3]
[350202342,1737687052720,-2566.35,0.00020136,3]
[350202343,1737687052729,-507.36123817,0.00020136,3]
[350202344,1737687052739,-500.0,0.00020136,3]
[350202345,1737687052747,-506.02208672,0.00020136,3]
[350202346,1737687052822,-500.0,0.00020136,3]
[350202347,1737687052832,-500.0,0.00020136,3]
[350202348,1737687052841,-500.0,0.00020136,3]
[350202349,1737687052850,-1164.35,0.00020136,3]
[350202350,1737687052860,-2794.98,0.00020136,3]
[350202351,1737687052869,-841.46,0.00020136,3]
[350202352,1737687052878,-507.28356888,0.00020136,3]
[350202353,1737687052887,-500.0,0.00020136,3]
[350202354,1737687052898,-500.0,0.00020136,3]
[350202355,1737687052907,-500.0,0.00020136,3]
[350202356,1737687052917,-888.16,0.00020136,3]
[350202357,1737687052927,-500.0,0.00020136,3]
[350202358,1737687052939,-507.35599046,0.00020136,3]
[350202359,1737687052949,-500.0,0.00020136,3]
[350202360,1737687052958,-500.0,0.00020136,3]
[350202361,1737687052968,-375.04613573,0.00020136,3]
[350202362,1737687052979,-406.72618874,0.00020136,3]
[350202363,1737687052988,-500.0,0.00020136,3]
[350202364,1737687052999,-500.0,0.00020136,3]
[350202365,1737687053011,-500.0,0.00020136,3]
[350202366,1737687053020,-678.28,0.00020136,3]
[350202367,1737687053030,-12181.58,0.00020136,3]
[350202368,1737687053041,-500.0,0.00020136,3]
[350202369,1737687053051,-581.2,0.00020136,3]
[350202370,1737687053063,-1061.46,0.00020136,3]
[350202371,1737687053072,-500.0,0.00020136,3]
[350202372,1737687053084,-500.0,0.00020136,3]
[350202373,1737687053093,-2173.92,0.00020136,3]
[350202374,1737687053103,-1202.1,0.00020136,3]
[350202375,1737687053112,-1819.3,0.00020136,3]
[350202376,1737687053123,-500.0,0.00020136,3]
[350202377,1737687053132,-522.76,0.00020136,3]
[350202378,1737687053142,-2877.86,0.00020136,3]
[350202379,1737687053152,-536.13,0.00020136,3]
[350202380,1737687053162,-502.22,0.00020136,3]
[350202381,1737687053173,-1032.07,0.00020136,3]
[350202382,1737687053182,-551.71,0.00020136,3]
[350202383,1737687053192,-500.0,0.00020136,3]
[350202384,1737687053201,-500.0,0.00020136,3]
[350202385,1737687053211,-505.44396854,0.00020136,3]
[350202386,1737687053221,-606.17,0.00020136,3]
[350202387,1737687053230,-500.0,0.00020136,3]
[350202388,1737687053240,-500.0,0.00020136,3]
[350202389,1737687053250,-162.48692336,0.00020136,3]
[350202390,1737687053259,-500.0,0.00020136,3]
[350202391,1737687053268,-500.0,0.00020136,3]
[350202392,1737687053278,-1072.27,0.00020136,3]
[350202393,1737687053287,-278.78,0.0002015,3]
[350202394,1737687053297,-500.0,0.0002015,3]
[350202395,1737687053307,-880.95451252,0.00020176,2]
[350202396,1737687053316,-1000.0,0.00020226,2]
[350202397,1737687053325,-376.76,0.00020273,3]
[350202398,1737687053335,-292.55,0.00020273,3]
[350202399,1737687053344,-500.0,0.00020273,3]
[350202400,1737687053354,-240.1,0.00020273,3]
[350202401,1737687053364,-500.0,0.00020273,3]
[350202402,1737687053374,-2755.07,0.00020273,3]
[350202403,1737687053384,-151.0,0.00020273,2]
[350202404,1737687053395,-500.0,0.00020273,3]
[350202405,1737687053405,-2566.35,0.00020273,3]
[350202406,1737687053414,-500.0,0.00020273,3]
[350202407,1737687053425,-500.0,0.00020273,3]
[350202408,1737687053435,-505.77334746,0.00020273,3]
[350202409,1737687053447,-500.0,0.00020273,3]
[350202410,1737687053467,-1164.35,0.00020273,3]
[350202411,1737687053478,-2794.98,0.00020273,3]
[350202412,1737687053487,-841.46,0.00020273,3]
[350202413,1737687053497,-603.96825912,0.00020273,3]
[350202414,1737687053506,-500.0,0.00020273,3]
[350202415,1737687053516,-500.0,0.00020273,3]
[350202416,1737687053525,-888.16,0.00020273,3]
[350202417,1737687053535,-297.14747251,0.00020273,3]
[350202418,1737687053545,-151.0,0.00020273,2]
[350202419,1737687053554,-500.0,0.00020273,3]
[350202420,1737687053564,-500.0,0.00020273,3]
[350202421,1737687053573,-500.0,0.00020273,3]
[350202422,1737687053582,-500.0,0.00020273,3]
[350202423,1737687053591,-500.0,0.00020273,3]
[350202424,1737687053599,-678.28,0.00020273,3]
[350202425,1737687053608,-12181.58,0.00020273,3]
[350202426,1737687053618,-500.0,0.00020273,3]
[350202427,1737687053627,-581.2,0.00020273,3]
[350202428,1737687053636,-1061.46,0.00020273,3]
[350202429,1737687053646,-500.0,0.00020273,3]
[350202430,1737687053655,-500.0,0.00020273,3]
[350202431,1737687053664,-2173.92,0.00020273,3]
[350202432,1737687053673,-1202.1,0.00020273,3]
[350202433,1737687053683,-1819.3,0.00020273,3]
[350202434,1737687053692,-500.0,0.00020273,3]
[350202435,1737687053702,-522.76,0.00020273,3]
[350202436,1737687053712,-2877.86,0.00020273,3]
[350202437,1737687053723,-536.13,0.00020273,3]
[350202438,1737687053732,-502.22,0.00020273,3]
[350202439,1737687053742,-1032.07,0.00020273,3]
[350202440,1737687053751,-551.71,0.00020273,3]
[350202441,1737687053761,-500.0,0.00020273,3]
[350202442,1737687053770,-500.0,0.00020273,3]
[350202443,1737687053780,-606.17,0.00020273,3]
[350202444,1737687053790,-500.0,0.00020273,3]
[350202445,1737687053800,-615.87,0.00020273,3]
[350202446,1737687053810,-500.0,0.00020273,3]
[350202447,1737687053819,-500.0,0.00020273,3]
[350202448,1737687053829,-1072.27,0.00020273,3]
[350202449,1737687053839,-500.0,0.00020287,3]
[350202450,1737687053848,-880.95451252,0.00020314,2]
[350202451,1737687053858,-151.0,0.0002041,2]
[350202452,1737687053867,-151.0,0.0002041,2]
[350202453,1737687053877,-494.44138829,0.0002041,3]
[350202454,1737687053887,-172.37297508,0.0002041,3]
[350202455,1737687053903,-2755.07,0.0002041,3]
[350202456,1737687053913,-500.0,0.0002041,3]
[350202457,1737687053923,-2566.35,0.0002041,3]
[350202458,1737687053936,-500.0,0.0002041,3]
[350202459,1737687053946,-374.82,0.0002041,3]
[350202460,1737687053957,-500.0,0.0002041,3]
[350202461,1737687053967,-1164.35,0.0002041,3]
[350202462,1737687053977,-2794.98,0.0002041,3]
[350202463,1737687053987,-841.46,0.0002041,3]
[350202464,1737687053997,-500.0,0.0002041,3]
[350202465,1737687054007,-500.0,0.0002041,3]
[350202466,1737687054018,-888.16,0.0002041,3]
[350202467,1737687054028,-500.0,0.0002041,3]
[350202468,1737687054038,-500.0,0.0002041,3]
[350202469,1737687054047,-500.0,0.0002041,3]
[350202470,1737687054057,-500.0,0.0002041,3]
[350202471,1737687054066,-500.0,0.0002041,3]
[350202472,1737687054076,-678.28,0.0002041,3]
[350202473,1737687054086,-12181.58,0.0002041,3]
[350202474,1737687054096,-500.0,0.0002041,3]
[350202475,1737687054107,-581.2,0.0002041,3]
[350202476,1737687054116,-1061.46,0.0002041,3]
[350202477,1737687054126,-500.0,0.0002041,3]
[350202478,1737687054135,-500.0,0.0002041,3]
[350202479,1737687054145,-2173.92,0.0002041,3]
[350202480,1737687054154,-1202.1,0.0002041,3]
[350202481,1737687054163,-1819.3,0.0002041,3]
[350202482,1737687054173,-500.0,0.0002041,3]
[350202483,1737687054182,-522.76,0.0002041,3]
[350202484,1737687054192,-2877.86,0.0002041,3]
[350202485,1737687054201,-536.13,0.0002041,3]
[350202486,1737687054211,-502.22,0.0002041,3]
[350202487,1737687054220,-1032.07,0.0002041,3]
[350202488,1737687054229,-551.71,0.0002041,3]
[350202489,1737687054239,-467.36727509,0.0002041,3]
[350202490,1737687054250,-261.6,0.0002041,3]
[350202491,1737687054260,-606.17,0.0002041,3]
[350202492,1737687054270,-500.0,0.0002041,3]
[350202493,1737687054348,-500.0,0.0002041,3]
[350202494,1737687054358,-500.0,0.0002041,3]
[350202495,1737687054368,-1072.27,0.0002041,3]
[350202496,1737687054378,-506.14025149,0.00020424,3]
[350202497,1737687054388,-880.95451252,0.00020452,2]
[350202498,1737687054397,-2755.07,0.00020547,3]
[350202499,1737687054407,-202.058913,0.00020547,2]
[350202500,1737687054417,-500.0,0.00020547,3]
[350202501,1737687054427,-2566.35,0.00020547,3]
[350202502,1737687054437,-500.0,0.00020547,3]
[350202503,1737687054447,-500.0,0.00020547,3]
[350202504,1737687054459,-1164.35,0.00020547,3]
[350202505,1737687054469,-2794.98,0.00020547,3]
[350202506,1737687054479,-841.46,0.00020547,3]
[350202507,1737687054490,-500.0,0.00020547,3]
[350202508,1737687054500,-493.78,0.00020547,3]
[350202509,1737687054511,-888.16,0.00020547,3]
[350202510,1737687054521,-151.0,0.00020547,2]
[350202511,1737687054536,-500.0,0.00020547,3]
[350202512,1737687054546,-500.0,0.00020547,3]
[350202513,1737687054556,-611.94634218,0.00020547,3]
[350202514,1737687054566,-500.0,0.00020547,3]
[350202515,1737687054578,-500.0,0.00020547,3]
[350202516,1737687054587,-678.28,0.00020547,3]
[350202517,1737687054596,-12181.58,0.00020547,3]
[350202518,1737687054606,-500.0,0.00020547,3]
[350202519,1737687054616,-581.2,0.00020547,3]
[350202520,1737687054626,-1061.46,0.00020547,3]
[350202521,1737687054635,-500.0,0.00020547,3]
[350202522,1737687054644,-500.0,0.00020547,3]
[350202523,1737687054654,-2173.92,0.00020547,3]
[350202524,1737687054666,-1202.1,0.00020547,3]
[350202525,1737687054675,-1819.3,0.00020547,3]
[350202526,1737687054685,-500.0,0.00020547,3]
[350202527,1737687054695,-522.76,0.00020547,3]
[350202528,1737687054705,-2877.86,0.00020547,3]
[350202529,1737687054714,-536.13,0.00020547,3]
[350202530,1737687054724,-502.22,0.00020547,3]
[350202531,1737687054734,-1032.07,0.00020547,3]
[350202532,1737687054744,-551.71,0.00020547,3]
[350202533,1737687054755,-606.17,0.00020547,3]
[350202534,1737687054766,-500.0,0.00020547,3]
[350202535,1737687054775,-500.0,0.00020547,3]
[350202536,1737687054784,-500.0,0.00020547,3]
[350202537,1737687054794,-1072.27,0.00020547,3]
[350202538,1737687054804,-880.95451252,0.0002059,2]
[350202539,1737687054814,-1000.0,0.00020598,2]
[350202540,1737687054824,-249.916237,0.00020684,2]
[350202541,1737687054834,-249.916237,0.00020684,2]
[350202542,1737687054844,-151.0,0.00020684,2]
[350202543,1737687054853,-151.0,0.00020684,2]
[350202544,1737687054863,-2755.07,0.00020684,3]
[350202545,1737687054872,-500.0,0.00020684,3]
[350202546,1737687054883,-2566.35,0.00020684,3]
[350202547,1737687054893,-500.0,0.00020684,3]
[350202548,1737687054903,-500.0,0.00020684,3]
[350202549,1737687054913,-1164.35,0.00020684,3]
[350202550,1737687054924,-2794.98,0.00020684,3]
[350202551,1737687054934,-841.46,0.00020684,3]
[350202552,1737687054944,-500.0,0.00020684,3]
[350202553,1737687054954,-888.16,0.00020684,3]
[350202554,1737687054964,-500.0,0.00020684,3]
[350202555,1737687054973,-500.0,0.00020684,3]
[350202556,1737687054984,-500.0,0.00020684,3]
[350202557,1737687054993,-500.0,0.00020684,3]
[350202558,1737687055003,-678.28,0.00020684,3]
[350202559,1737687055015,-12181.58,0.00020684,3]
[350202560,1737687055025,-500.0,0.00020684,3]
[350202561,1737687055034,-581.2,0.00020684,3]
[350202562,1737687055044,-1061.46,0.00020684,3]
[350202563,1737687055053,-500.0,0.00020684,3]
[350202564,1737687055062,-500.0,0.00020684,3]
[350202565,1737687055072,-2173.92,0.00020684,3]
[350202566,1737687055082,-1202.1,0.00020684,3]
[350202567,1737687055091,-1819.3,0.00020684,3]
[350202568,1737687055101,-500.0,0.00020684,3]
[350202569,1737687055110,-522.76,0.00020684,3]
[350202570,1737687055119,-2877.86,0.00020684,3]
[350202571,1737687055129,-536.13,0.00020684,3]
[350202572,1737687055138,-502.22,0.00020684,3]
[350202573,1737687055147,-1032.07,0.00020684,3]
[350202574,1737687055157,-551.71,0.00020684,3]
[350202575,1737687055167,-606.17,0.00020684,3]
[350202576,1737687055177,-500.0,0.00020684,3]
[350202577,1737687055186,-500.0,0.00020684,3]
[350202578,1737687055195,-500.0,0.00020684,3]
[350202579,1737687055204,-1072.27,0.00020684,3]
[350202580,1737687055213,-880.95451252,0.00020728,2]
[350202581,1737687055222,-536.0,0.00020728,2]
[350202582,1737687055231,-1585.905,0.00020728,2]
[350202583,1737687055241,-2305.0,0.00020728,2]
[350202584,1737687055251,-391.665,0.000208,2]
[350202585,1737687055261,-163.287233,0.00020807,2]
[350202586,1737687055270,-151.0,0.00020821,2]
[350202587,1737687055279,-2755.07,0.00020821,3]
[350202588,1737687055289,-484.08,0.00020821,3]
[350202589,1737687055299,-2566.35,0.00020821,3]
[350202590,1737687055309,-500.0,0.00020821,3]
[350202591,1737687055319,-481.35869751,0.00020821,3]
[350202592,1737687055329,-1164.35,0.00020821,3]
[350202593,1737687055339,-2794.98,0.00020821,3]
[350202594,1737687055349,-841.46,0.00020821,3]
[350202595,1737687055359,-500.0,0.00020821,3]
[350202596,1737687055369,-888.16,0.00020821,3]
[350202597,1737687055378,-151.0,0.00020821,2]
[350202598,1737687055388,-500.0,0.00020821,3]
[350202599,1737687055398,-500.0,0.00020821,3]
[350202600,1737687055408,-500.0,0.00020821,3]
[350202601,1737687055417,-500.0,0.00020821,3]
[350202602,1737687055427,-678.28,0.00020821,3]
[350202603,1737687055439,-12181.58,0.00020821,3]
[350202604,1737687055449,-500.0,0.00020821,3]
[350202605,1737687055460,-581.2,0.00020821,3]
[350202606,1737687055471,-1061.46,0.00020821,3]
[350202607,1737687055481,-500.0,0.00020821,3]
[350202608,1737687055491,-500.0,0.00020821,3]
[350202609,1737687055501,-2173.92,0.00020821,3]
[350202610,1737687055511,-1202.1,0.00020821,3]
[350202611,1737687055521,-1819.3,0.00020821,3]
[350202612,1737687055531,-500.0,0.00020821,3]
[350202613,1737687055541,-522.76,0.00020821,3]
[350202614,1737687055550,-2877.86,0.00020821,3]
[350202615,1737687055560,-536.13,0.00020821,3]
[350202616,1737687055569,-502.22,0.00020821,3]
[350202617,1737687055578,-1032.07,0.00020821,3]
[350202618,1737687055588,-551.71,0.00020821,3]
[350202619,1737687055598,-606.17,0.00020821,3]
[350202620,1737687055608,-500.0,0.00020821,3]
[350202621,1737687055617,-500.0,0.00020821,3]
[350202622,1737687055629,-500.0,0.00020821,3]
[350202623,1737687055639,-1072.27,0.00020821,3]
[350202624,1737687055649,-880.95451252,0.00020866,2]
[350202625,1737687055658,-305.325752,0.000209,9]
[350202626,1737687055669,-151.0,0.00020958,2]
[350202627,1737687055679,-2755.07,0.00020958,3]
[350202628,1737687055689,-2566.35,0.00020958,3]
[350202629,1737687055762,-500.0,0.00020958,3]
[350202630,1737687055772,-1164.35,0.00020958,3]
[350202631,1737687055782,-2794.98,0.00020958,3]
[350202632,1737687055791,-841.46,0.00020958,3]
[350202633,1737687055801,-500.0,0.00020958,3]
[350202634,1737687055810,-888.16,0.00020958,3]
[350202635,1737687055821,-500.0,0.00020958,3]
[350202636,1737687055830,-500.0,0.00020958,3]
[350202637,1737687055840,-500.0,0.00020958,3]
[350202638,1737687055850,-500.0,0.00020958,3]
[350202639,1737687055859,-678.28,0.00020958,3]
[350202640,1737687055869,-12181.58,0.00020958,3]
[350202641,1737687055879,-500.0,0.00020958,3]
[350202642,1737687055888,-581.2,0.00020958,3]
[350202643,1737687055898,-1061.46,0.00020958,3]
[350202644,1737687055908,-500.0,0.00020958,3]
[350202645,1737687055921,-361.9489895,0.00020958,3]
[350202646,1737687055934,-2173.92,0.00020958,3]
[350202647,1737687055944,-1202.1,0.00020958,3]
[350202648,1737687055956,-1819.3,0.00020958,3]
[350202649,1737687055966,-500.0,0.00020958,3]
[350202650,1737687055979,-522.76,0.00020958,3]
[350202651,1737687055989,-2877.86,0.00020958,3]
[350202652,1737687055999,-536.13,0.00020958,3]
[350202653,1737687056009,-502.22,0.00020958,3]
[350202654,1737687056021,-1032.07,0.00020958,3]
[350202655,1737687056031,-551.71,0.00020958,3]
[350202656,1737687056041,-606.17,0.00020958,3]
[350202657,1737687056051,-500.0,0.00020958,3]
[350202658,1737687056061,-500.0,0.00020958,3]
[350202659,1737687056070,-500.0,0.00020958,3]
[350202660,1737687056080,-1072.27,0.00020958,3]
[350202661,1737687056089,-689.67,0.00021,2]
[350202662,1737687056098,-880.95451252,0.00021003,2]
[350202663,1737687056108,-1500.0,0.00021022,2]
[350202664,1737687056118,-2755.07,0.00021095,3]
[350202665,1737687056128,-2566.35,0.00021095,3]
[350202666,1737687056138,-500.0,0.00021095,3]
[350202667,1737687056148,-1164.35,0.00021095,3]
[350202668,1737687056158,-2794.98,0.00021095,3]
[350202669,1737687056172,-841.46,0.00021095,3]
[350202670,1737687056181,-500.0,0.00021095,3]
[350202671,1737687056192,-888.16,0.00021095,3]
[350202672,1737687056202,-500.0,0.00021095,3]
[350202673,1737687056212,-220.22,0.00021095,3]
[350202674,1737687056222,-500.0,0.00021095,3]
[350202675,1737687056232,-500.0,0.00021095,3]
[350202676,1737687056242,-678.28,0.00021095,3]
[350202677,1737687056252,-12181.58,0.00021095,3]
[350202678,1737687056262,-500.0,0.00021095,3]
[350202679,1737687056272,-581.2,0.00021095,3]
[350202680,1737687056283,-1061.46,0.00021095,3]
[350202681,1737687056293,-500.0,0.00021095,3]
[350202682,1737687056303,-2173.92,0.00021095,3]
[350202683,1737687056313,-1202.1,0.00021095,3]
[350202684,1737687056323,-1819.3,0.00021095,3]
[350202685,1737687056333,-500.0,0.00021095,3]
[350202686,1737687056343,-522.76,0.00021095,3]
[350202687,1737687056353,-2877.86,0.00021095,3]
[350202688,1737687056363,-536.13,0.00021095,3]